bitfinex-derivatives/quotes_SOLF0:USTF0_20251210
["timestamp","ask_amount","ask_price","bid_price","bid_amount"]
[1765394916048,6.5452,137.5,137.41,7.81485372]
[1765394916347,0.05554925,137.47,137.41,6.5491]
[1765394916939,101.7601,137.57,137.46,101.8371]
[1765394917140,101.7665,137.56,137.45,101.8443]
[1765394917339,101.7601,137.57,137.48,6.5458]
[1765394917543,101.7835,137.54,137.42,101.863]
[1765394917744,101.7882,137.53,137.42,101.863]
[1765394917953,0.04905829,137.49,137.46,0.05196796]
[1765394918467,101.7695,137.56,137.46,0.05196796]
[1765394918643,101.7734,137.55,137.44,108.85827809]
[1765394918843,6.5442,137.52,137.44,6.5475]
[1765394919247,101.8398,137.46,137.36,3.47372242]
[1765394919440,0.05466461,137.42,137.4,0.05513938]
[1765394922853,101.8069,137.51,137.4,0.05513938]
[1765394923053,101.8111,137.5,137.38,101.8945]
[1765394923249,7.00717809,137.48,137.4,6.5494]
[1765394923460,108.81407809,137.51,137.4,101.8822]
[1765394923760,7.00717809,137.51,137.4,101.8831]
[1765394924054,0.05154537,137.47,137.44,0.0554598]
[1765394924262,0.04708901,137.47,137.44,0.05177249]
[1765394924458,0.04708901,137.47,137.45,6.5471]
[1765394925162,0.04708901,137.47,137.44,0.05177249]
[1765394926863,6.59358901,137.47,137.44,0.05177249]
[1765394927164,0.04708901,137.47,137.44,0.05177249]
[1765394927862,6.59358901,137.47,137.44,0.05177249]
[1765394928063,0.04708901,137.47,137.44,0.05177249]
[1765394928451,6.547,137.46,137.44,0.05177249]
[1765394928858,0.04708901,137.47,137.44,0.05177249]
[1765394929060,101.88278901,137.47,137.44,0.05177249]
[1765394929255,0.04708901,137.47,137.44,0.05177249]
[1765394930165,6.59358901,137.47,137.44,0.05177249]
[1765394930362,0.04708901,137.47,137.44,0.05177249]
[1765394930763,6.547,137.46,137.44,0.05177249]
[1765394931267,0.04708901,137.47,137.44,0.05177249]
[1765394932960,101.7825,137.54,137.44,0.05177249]
[1765394933161,101.7613,137.57,137.45,101.8468]
[1765394933373,108.75967809,137.58,137.47,101.8304]
[1765394933573,7.00717809,137.58,137.48,101.823]
[1765394933865,0.04600085,137.54,137.52,0.05564326]
[1765394936367,113.97868296,137.63,137.52,0.05564326]
[1765394936568,101.7166,137.63,137.52,101.7938]
[1765394936768,101.702,137.65,137.53,101.7868]
[1765394937368,0.05355434,137.6,137.57,0.04934291]
[1765394937757,101.6799,137.68,137.58,6.5408]
[1765394937960,101.6852,137.67,137.57,21.54983171]
[1765394938160,101.6712,137.69,137.57,101.758]
[1765394938561,6.5364,137.68,137.59,6.5403]
[1765394938762,0.05470198,137.65,137.62,0.05016056]
[1765394944772,101.75780198,137.65,137.62,0.05016056]
[1765394944974,0.05470198,137.65,137.62,0.05016056]
[1765394945170,101.734,137.61,137.5,101.8058]
[1765394945372,101.7238,137.62,137.5,21.82472508]
[1765394945373,101.7547,137.58,137.5,21.82472508]
[1765394945572,6.5417,137.57,137.5,6.5448]
[1765394946266,0.04713194,137.55,137.52,0.04902307]
[1765394946571,101.7099,137.64,137.52,101.83882307]
[1765394946775,101.7099,137.64,137.52,101.7898]
[1765394946965,6.5398,137.61,137.54,6.5427]
[1765394947568,0.04832853,137.59,137.56,0.04760016]
[1765394950977,6.58932853,137.59,137.56,0.04760016]
[1765394951365,6.5413,137.58,137.56,0.04760016]
[1765394953375,6.5428,137.55,137.48,6.5456]
[1765394953776,6.5418,137.57,137.48,101.8236]
[1765394953974,101.739,137.6,137.49,101.8156]
[1765394954372,0.05030527,137.56,137.53,0.04603461]
[1765394956179,6.59250527,137.56,137.53,0.04603461]
[1765394956883,0.05030527,137.56,137.53,0.04603461]
[1765394957885,6.5427,137.55,137.53,0.04603461]
[1765394958480,0.05030527,137.56,137.53,0.04603461]
[1765394962392,6.5429,137.55,137.53,0.04603461]
[1765394969695,101.7907,137.53,137.43,21.71798689]
[1765394969891,101.7851,137.54,137.43,101.8605]
[1765394970092,101.7787,137.55,137.44,101.8535]
[1765394970290,114.03048296,137.56,137.45,101.8468]
[1765394970699,0.05587368,137.52,137.49,0.05158402]
[1765394971502,0.05587368,137.52,137.5,6.5448]
[1765394974000,0.05587368,137.52,137.49,0.05158402]
[1765394974503,6.5445,137.51,137.49,0.05158402]
[1765394977606,0.05587368,137.52,137.49,0.05158402]
[1765394978107,6.5419,137.57,137.49,101.86608402]
[1765394978407,101.7302,137.61,137.5,101.8081]
[1765394979012,101.7451,137.59,137.51,6.5443]
[1765394979310,0.04986895,137.56,137.54,0.04977746]
[1765394980509,6.59196895,137.56,137.54,0.04977746]
[1765394982308,0.04986895,137.56,137.54,0.04977746]
[1765394985204,6.59196895,137.56,137.54,0.04977746]
[1765394985401,0.04986895,137.56,137.54,0.04977746]
[1765394986107,12.31195191,137.56,137.45,101.841]
[1765394986301,61.48,137.58,137.46,101.8366]
[1765394986501,61.48,137.58,137.46,114.09868296]
[1765394986804,61.48,137.58,137.48,101.8239]
[1765394986999,0.04918293,137.54,137.52,0.05241607]
[1765394989313,6.5437,137.53,137.45,6.547]
[1765394989613,101.7658,137.56,137.45,101.8438]
[1765394990312,6.5432,137.54,137.49,0.04706901]
[1765394990502,0.05067792,137.52,137.49,0.04706901]
[1765394990908,0.05067792,137.52,137.5,6.5447]
[1765394993711,0.00067792,137.52,137.5,6.5447]
[1765394995315,61.48,137.64,137.56,6.5418]
[1765394995511,101.693,137.66,137.56,101.7641]
[1765394995914,6.5385,137.64,137.58,6.5409]
[1765394996321,0.05426452,137.62,137.6,0.04641937]
[1765394996510,0.05426452,137.62,137.6,6.58611937]
[1765394996713,6.5365,137.68,137.6,7.07792301]
[1765394997113,101.6423,137.73,137.62,101.7183]
[1765394997315,101.6354,137.74,137.62,101.7183]
[1765394997519,101.6403,137.73,137.62,101.7183]
[1765394997714,0.05258816,137.69,137.67,0.04728908]
[1765394998517,101.6325,137.74,137.67,0.04728908]
[1765394998917,6.534,137.73,137.67,0.04728908]
[1765394999118,108.65860364,137.75,137.67,0.04728908]
[1765394999119,101.6394,137.74,137.67,0.04728908]
[1765394999419,0.04759764,137.72,137.67,0.04728908]
[1765395000420,0.04759764,137.72,137.68,101.6742]
[1765395000721,0.04759764,137.72,137.67,7.07879272]
[1765395000915,0.04759764,137.72,137.67,0.04728908]
[1765395001319,0.04759764,137.72,137.67,108.76009272]
[1765395001532,0.04759764,137.72,137.67,0.04728908]
[1765395001826,0.04759764,137.72,137.67,108.75929272]
[1765395002025,0.04759764,137.72,137.67,7.07879272]
[1765395002223,0.04759764,137.72,137.67,108.75989272]
[1765395002422,101.6069,137.78,137.67,7.07879272]
[1765395002635,108.64730364,137.77,137.66,61.46]
[1765395003029,6.5313,137.79,137.68,108.70550364]
[1765395003327,0.05260833,137.75,137.72,0.04798078]
[1765395003523,0.05216067,137.75,137.72,0.05228658]
[1765395004027,6.5294,137.83,137.73,101.6393]
[1765395004224,101.5248,137.89,137.78,7.03150364]
[1765395004527,6.5295,137.83,137.74,6.5331]
[1765395005119,0.05232025,137.8,137.77,0.05597499]
[1765395005317,6.5281,137.86,137.77,101.6097]
[1765395005521,7.03150364,137.88,137.77,108.64120364]
[1765395005831,108.53950364,137.91,137.79,101.5925]
[1765395006029,108.53950364,137.91,137.8,101.588]
[1765395006225,0.04928629,137.87,137.84,0.05589171]
[1765395006924,6.5241,137.94,137.84,0.05589171]
[1765395007124,6.5241,137.94,137.84,101.5522]
[1765395007422,108.52420364,137.93,137.81,170.02720364]
[1765395007725,101.4927,137.93,137.84,6.5287]
[1765395008032,0.05012541,137.9,137.87,0.05274937]
[1765395008233,101.4582,137.98,137.87,108.62085301]
[1765395008534,162.8886,137.99,137.88,101.5275]
[1765395008723,107.9782,137.98,137.89,6.526]
[1765395008920,101.4874,137.94,137.83,101.5652]
[1765395009122,0.05272191,137.9,137.87,0.04809156]
[1765395009334,7.03150364,137.95,137.87,0.04809156]
[1765395009335,7.03150364,137.98,137.88,101.529]
[1765395009525,101.4424,138.0,137.89,108.55090364]
[1765395009830,101.4499,137.99,137.89,7.03150364]
[1765395010032,101.4424,138.0,137.9,6.5255]
[1765395010237,101.4486,137.99,137.88,162.929]
[1765395010427,0.05089795,137.95,137.92,0.04620056]
[1765395011424,0.05089795,137.95,137.92,108.5756042]
[1765395011635,101.4206,138.03,137.92,108.5756042]
[1765395011932,101.4206,138.03,137.92,108.52940364]
[1765395012437,101.4497,137.99,137.88,162.9257]
[1765395012733,0.04191344,137.95,137.92,0.05466625]
[1765395017745,0.04191344,137.95,137.93,101.4924]
[1765395017946,101.4132,138.04,137.93,101.4924]
[1765395018141,101.3756,138.09,137.97,101.4576]
[1765395018441,101.3679,138.1,137.99,7.03150364]
[1765395018642,101.3679,138.1,138.0,6.521]
[1765395018844,6.5177,138.08,138.04,0.04986024]
[1765395019038,108.44080364,138.05,137.93,101.4925]
[1765395019237,108.42160364,138.07,137.96,101.469]
[1765395019445,7.03150364,138.07,137.97,101.4608]
[1765395019745,101.41,138.05,137.94,68.37150364]
[1765395020146,0.04986025,138.01,137.98,6.57120266]
[1765395020341,0.04591994,138.01,137.98,0.04861253]
[1765395020643,6.5171,138.09,137.98,101.50141253]
[1765395020848,108.40280364,138.1,138.0,6.5209]
[1765395021042,21.74,138.13,138.02,101.4245]
[1765395021043,7.03150364,138.13,138.02,101.4245]
[1765395021244,101.363,138.11,138.0,61.32]
[1765395021444,7.03150364,138.09,138.0,61.32]
[1765395021646,101.3856,138.08,138.03,0.05070642]
[1765395021947,7.03150364,138.07,138.03,0.05070642]
[1765395022144,101.3856,138.08,138.03,0.05070642]
[1765395022441,101.3927,138.07,138.03,0.05070642]
[1765395022746,108.41710364,138.08,137.97,101.4629]
[1765395022945,6.5203,138.02,137.94,6.524]
[1765395023345,13.55480364,137.96,137.89,6.5261]
[1765395023551,7.03150364,137.94,137.91,0.0555458]
[1765395023849,0.04637777,137.94,137.91,0.0555458]
[1765395024045,101.4219,138.03,137.91,0.0555458]
[1765395024046,101.4219,138.03,137.91,7.08704944]
[1765395024356,6.52,138.03,137.94,6.5237]
[1765395024550,61.32,138.05,137.95,101.4752]
[1765395024753,61.32,138.05,137.96,101.4698]
[1765395025050,6.518,138.07,137.99,0.0528828]
[1765395025236,6.518,138.07,138.02,0.0482731]
[1765395025441,7.03150364,138.07,138.02,0.0482731]
[1765395025646,101.3861,138.08,138.02,0.0482731]
[1765395025849,6.518,138.07,138.02,0.0482731]
[1765395026353,7.03150364,138.07,138.02,0.0482731]
[1765395026649,108.40350364,138.1,138.02,0.0482731]
[1765395026949,101.3633,138.11,138.05,0.04767286]
[1765395027157,6.5165,138.1,138.05,0.04767286]
[1765395027650,101.3687,138.1,138.05,0.04767286]
[1765395027852,101.3637,138.11,138.05,0.04767286]
[1765395028254,108.41010364,138.09,138.05,0.04767286]
[1765395028460,6.5181,138.07,138.05,0.04767286]
[1765395030753,108.44710364,138.04,137.94,6.5238]
[1765395030955,101.4195,138.03,137.94,6.5238]
[1765395031259,101.443,138.0,137.89,7.03150364]
[1765395031547,0.04983117,137.96,137.93,0.04808898]
[1765395033262,0.04983117,137.96,137.93,101.53748898]
[1765395033448,101.4046,138.05,137.96,7.03150364]
[1765395033648,6.5199,138.03,137.95,6.5233]
[1765395033842,108.43080364,138.06,137.95,6.5233]
[1765395033843,61.3,138.08,137.96,108.49840364]
[1765395034050,101.362,138.11,137.99,108.47260364]
[1765395034350,6.5176,138.08,138.04,0.04806572]
[1765395034547,61.3,138.13,138.04,0.04806572]
[1765395034755,61.3,138.13,138.07,0.04899015]
[1765395035150,67.8152,138.13,138.07,0.04899015]
[1765395035359,61.3,138.13,138.07,0.04899015]
[1765395035559,101.3115,138.18,138.08,7.03150364]
[1765395035762,101.3115,138.18,138.12,0.05089809]
[1765395036065,101.3171,138.17,138.12,0.05089809]
[1765395036358,101.3115,138.18,138.12,0.05089809]
[1765395036756,162.6036,138.19,138.12,0.05089809]
[1765395037145,101.3163,138.17,138.12,0.05089809]
[1765395037950,6.5139,138.16,138.12,0.05089809]
[1765395038759,6.5147,138.14,138.12,0.05089809]
[1765395039561,6.5159,138.12,138.04,13.55070364]
[1765395039860,101.343,138.14,138.04,13.55070364]
[1765395039861,101.343,138.14,138.04,6.5192]
[1765395040157,6.5151,138.13,138.04,101.4085]
[1765395040363,101.3163,138.17,138.06,108.42700364]
[1765395040663,0.05273595,138.13,138.1,0.05391792]
[1765395041256,101.2493,138.27,138.14,101.338]
[1765395041559,6.5095,138.25,138.15,108.36150364]
[1765395041748,101.2577,138.25,138.15,7.03150364]
[1765395041953,6.5095,138.25,138.15,114.87530364]
[1765395042158,6.5095,138.25,138.19,0.05108342]
[1765395042661,101.2752,138.23,138.19,0.05108342]
[1765395042868,101.2801,138.22,138.19,0.05108342]
[1765395043359,6.5116,138.21,138.19,0.05108342]
[1765395043859,107.8071,138.2,138.1,6.5163]
[1765395044064,101.2949,138.2,138.1,6.5163]
[1765395044456,6.5125,138.19,138.1,6.5163]
[1765395044652,101.3032,138.19,138.08,6.5172]
[1765395044956,0.05478901,138.15,138.12,0.05087374]
[1765395046464,108.27580364,138.27,138.15,101.3296]
[1765395046757,101.2365,138.28,138.17,13.54440364]
[1765395046961,101.2515,138.26,138.17,6.5129]
[1765395047164,101.2515,138.26,138.16,7.03150364]
[1765395047358,108.26500364,138.29,138.16,7.03150364]
[1765395047557,101.2447,138.27,138.21,0.05075586]
[1765395047758,101.2335,138.29,138.21,0.05075586]
[1765395048067,101.2505,138.26,138.21,0.05075586]
[1765395048562,6.5097,138.25,138.21,0.05075586]
[1765395048763,101.2505,138.26,138.21,0.05075586]
[1765395048966,101.246,138.27,138.21,0.05075586]
[1765395049160,6.5096,138.25,138.21,0.05075586]
[1765395049360,101.2335,138.29,138.21,0.05075586]
[1765395049763,101.2433,138.27,138.21,0.05075586]
[1765395050063,101.2524,138.26,138.21,0.05075586]
[1765395050262,6.5097,138.25,138.21,0.05075586]
[1765395050663,101.2387,138.28,138.21,0.05075586]
[1765395050862,6.5091,138.26,138.21,0.05075586]
[1765395051059,101.2583,138.25,138.21,0.05075586]
[1765395051365,108.28200364,138.26,138.21,0.05075586]
[1765395051665,61.24,138.25,138.21,0.05075586]
[1765395052162,6.5099,138.24,138.21,0.05075586]
[1765395052368,61.24,138.25,138.21,0.05075586]
[1765395053169,67.7496,138.25,138.21,0.05075586]
[1765395054266,101.193,138.34,138.22,108.30960364]
[1765395054466,104.60214486,138.37,138.27,0.05268344]
[1765395054665,6.5044,138.36,138.31,0.04600789]
[1765395054870,3.42854486,138.37,138.31,7.07751153]
[1765395055177,3.42854486,138.37,138.31,108.28711153]
[1765395055364,3.42854486,138.37,138.32,101.2058]
[1765395055668,3.42854486,138.37,138.31,0.04600789]
[1765395055868,3.42854486,138.37,138.33,6.5054]
[1765395056266,3.42854486,138.37,138.31,13.58381153]
[1765395056472,3.42854486,138.37,138.31,7.07751153]
[1765395056770,3.42854486,138.37,138.31,0.04600789]
[1765395057264,3.42854486,138.37,138.31,6.55230789]
[1765395057468,3.42854486,138.37,138.31,0.04600789]
[1765395057662,3.42854486,138.37,138.32,101.2054]
[1765395058458,3.42854486,138.37,138.34,6.505]
[1765395058764,3.42854486,138.37,138.34,6.56064975]
[1765395059172,3.42854486,138.37,138.35,6.5045]
[1765395059768,3.42854486,138.37,138.34,0.05564975]
[1765395060362,6.5045,138.36,138.34,0.05564975]
[1765395060561,3.42854486,138.37,138.34,0.05564975]
[1765395061059,101.1892,138.35,138.23,162.4489]
[1765395061375,113.30016201,138.36,138.22,6.5106]
[1765395061376,6.5078,138.29,138.22,6.5106]
[1765395061671,174.48016201,138.36,138.25,101.2576]
[1765395061869,0.04730149,138.32,138.29,0.05200802]
[1765395062565,101.2215,138.3,138.18,12.11986201]
[1765395062763,101.2503,138.26,138.15,113.44776201]
[1765395062962,101.2897,138.21,138.09,101.3718]
[1765395063172,101.3159,138.18,138.06,101.3938]
[1765395063471,6.5127,138.18,138.07,107.9069]
[1765395063676,0.04781294,138.14,138.11,0.05387055]
[1765395063973,101.3565,138.12,138.0,101.4376]
[1765395064166,113.50416201,138.08,137.96,101.4683]
[1765395064366,101.3752,138.09,137.97,101.4592]
[1765395064571,101.3903,138.07,137.95,101.4761]
[1765395064873,61.18,138.06,137.98,101.4504]
[1765395065170,0.0469041,138.03,138.0,0.04839458]
[1765395065561,0.0469041,138.03,138.0,6.56959458]
[1765395065761,61.18,138.06,138.0,0.04839458]
[1765395066274,107.9255,138.05,138.0,0.04839458]
[1765395066466,101.4512,137.99,137.86,101.5439]
[1765395066769,61.18,137.99,137.89,101.5183]
[1765395066977,61.18,137.99,137.89,101.5213]
[1765395067173,169.1561,137.99,137.86,108.0715]
[1765395067372,101.459,137.98,137.86,108.0715]
[1765395067568,0.05179764,137.94,137.91,0.04822731]
[1765395068370,0.05179764,137.94,137.92,101.4967]
[1765395068573,61.18,137.99,137.92,113.61656201]
[1765395068771,61.18,137.99,137.9,101.5114]
[1765395069078,61.18,137.99,137.88,113.64536201]
[1765395069278,61.18,137.99,137.9,101.5097]
[1765395069578,0.0502581,137.96,137.93,0.05047924]
[1765395070772,61.18,137.99,137.94,101.4852]
[1765395070979,101.4083,138.05,137.94,12.11986201]
[1765395071283,101.4149,138.04,137.93,101.489]
[1765395071574,107.9271,138.05,137.93,108.0134]
[1765395071875,0.05083038,138.0,137.98,0.05191894]
[1765395072064,101.4322,138.02,137.91,101.504]
[1765395072265,101.4369,138.01,137.9,120.15786201]
[1765395072478,107.9525,138.02,137.9,120.15786201]
[1765395072671,101.4231,138.03,137.91,108.0287]
[1765395072872,101.4083,138.05,137.93,101.4884]
[1765395073069,0.05029723,138.0,137.98,0.05383655]
[1765395073269,0.04570728,138.0,137.98,0.05383655]
[1765395076383,101.4755,137.96,137.83,101.5638]
[1765395076583,101.4833,137.95,137.82,101.5697]
[1765395076778,101.4576,137.98,137.85,101.5483]
[1765395077085,101.4576,137.98,137.85,108.0763]
[1765395077277,101.4576,137.98,137.9,0.05334244]
[1765395077482,0.04841969,137.93,137.9,101.56514244]
[1765395077671,61.26,137.99,137.89,12.11986201]
[1765395077877,169.2307,137.99,137.86,113.66046201]
[1765395078078,169.2311,137.99,137.88,6.5268]
[1765395078490,61.26,137.99,137.9,108.0398]
[1765395078680,0.04649457,137.96,137.93,0.04913769]
[1765395080391,6.56959457,137.96,137.93,0.04913769]
[1765395080580,101.4792,137.95,137.86,12.11986201]
[1765395080976,101.4601,137.98,137.87,6.5272]
[1765395081289,162.7127,137.99,137.89,12.11986201]
[1765395081491,0.04665359,137.95,137.93,0.05018365]
[1765395085197,61.26,137.99,137.93,13.61004566]
[1765395085393,61.26,137.99,137.93,12.17004566]
[1765395085697,6.5201,138.03,137.95,6.5235]
[1765395085886,169.2268,138.05,137.95,101.477]
[1765395086087,0.04747822,138.01,137.99,0.04754091]
[1765395087288,0.04747822,138.01,137.91,101.503]
[1765395087289,108.00317822,138.01,137.91,108.0283]
[1765395087490,101.4346,138.01,137.91,6.5253]
[1765395087994,101.4146,138.04,137.92,101.4996]
[1765395088191,0.05211211,137.99,137.97,0.04891931]
[1765395088390,6.5219,137.99,137.9,18.64546201]
[1765395089101,107.9599,138.01,137.91,6.525]
[1765395089299,0.04569296,137.97,137.95,0.05443812]
[1765395089496,0.04912013,137.97,137.95,0.04851959]
[1765395092117,101.3848,138.08,137.96,101.4695]
[1765395092409,101.3453,138.14,138.01,113.55336201]
[1765395092598,6.5168,138.1,138.01,18.64036201]
[1765395092799,6.5168,138.1,138.01,6.5205]
[1765395093012,101.3841,138.08,137.98,12.11986201]
[1765395093308,0.04834992,138.04,138.02,0.04995396]
[1765395094498,0.04834992,138.04,138.02,6.57005396]
[1765395094701,6.5167,138.1,138.02,6.57005396]
[1765395095608,6.5156,138.12,138.03,101.4184]
[1765395095803,0.05285182,138.09,138.06,0.05529174]
[1765395096404,101.3192,138.17,138.06,113.56875375]
[1765395096707,6.5129,138.18,138.09,101.3748]
[1765395096905,162.6038,138.19,138.08,101.3778]
[1765395097212,61.3,138.19,138.1,101.3648]
[1765395097414,0.0548844,138.16,138.13,0.05476912]
[1765395099507,101.3831844,138.16,138.13,0.05476912]
[1765395099712,101.3494,138.13,138.02,101.4234]
[1765395099911,6.5153,138.13,138.04,6.5191]
[1765395100112,101.3461,138.13,138.04,6.5191]
[1765395100316,6.516,138.11,138.05,6.5185]
[1765395100710,0.0470358,138.09,138.07,0.05098744]
[1765395100907,0.05298115,138.09,138.07,0.05098744]
[1765395105910,61.28,138.12,138.07,101.43598744]
[1765395106314,101.3107,138.18,138.07,101.43598744]
[1765395106620,162.5707,138.18,138.07,101.385]
[1765395106818,61.26,138.18,138.09,101.3721]
[1765395107019,0.052488,138.15,138.12,0.05562782]
[1765395107324,61.26,138.18,138.13,101.3454]
[1765395107519,101.2751,138.23,138.12,113.52478983]
[1765395107823,101.2836,138.22,138.12,12.11986201]
[1765395108016,6.5122,138.2,138.13,6.5148]
[1765395108214,101.2751,138.23,138.13,101.3446]
[1765395108419,162.5254,138.24,138.17,0.04624396]
[1765395108623,6.5115,138.21,138.17,0.04624396]
[1765395108918,61.26,138.24,138.17,0.04624396]
[1765395109323,61.26,138.24,138.19,6.5119]
[1765395109524,61.26,138.24,138.2,0.04688832]
[1765395110024,6.5087,138.27,138.2,0.04688832]
[1765395110324,6.5087,138.27,138.22,0.05157967]
[1765395110721,6.5076,138.29,138.22,0.05157967]
[1765395111223,101.2076,138.32,138.23,6.5101]
[1765395111428,101.2,138.33,138.26,0.04637686]
[1765395111624,101.1938,138.34,138.26,0.04637686]
[1765395112420,61.24,138.36,138.27,101.2429]
[1765395112622,61.24,138.36,138.3,0.04954786]
[1765395114530,101.1855,138.35,138.3,0.04954786]
[1765395114929,67.7443,138.36,138.3,0.04954786]
[1765395115528,101.1866,138.35,138.3,0.04954786]
[1765395115719,101.1961,138.34,138.3,0.04954786]
[1765395115925,61.24,138.36,138.3,0.04954786]
[1765395116317,3.42854486,138.37,138.3,101.26784786]
[1765395116521,3.42854486,138.37,138.3,0.04954786]
[1765395117330,3.42854486,138.37,138.31,101.2131]
[1765395117537,3.42854486,138.37,138.32,108.16359829]
[1765395117716,3.42854486,138.37,138.33,0.04689086]
[1765395118123,3.42854486,138.37,138.34,107.6965]
[1765395118328,3.42854486,138.37,138.33,0.04689086]
[1765395120233,3.42854486,138.37,138.33,101.24429086]
[1765395120430,101.0982,138.47,138.36,101.1759]
[1765395120628,61.18,138.47,138.4,0.05242842]
[1765395120931,101.0687,138.51,138.43,6.96129829]
[1765395121132,101.083,138.49,138.46,0.04954136]
[1765395121338,101.0902,138.48,138.37,6.96129829]
[1765395121522,61.18,138.53,138.42,101.1301]
[1765395121727,61.18,138.53,138.43,101.1193]
[1765395122132,6.497,138.52,138.43,101.1193]
[1765395122339,0.04702199,138.49,138.46,0.0472945]
[1765395124139,0.04702199,138.49,138.46,101.1497945]
[1765395124330,101.01,138.59,138.47,108.05489829]
[1765395124331,107.97129829,138.59,138.47,108.05489829]
[1765395124539,101.0266,138.57,138.47,6.96129829]
[1765395124735,169.13129829,138.59,138.48,101.0867]
[1765395124935,74.61489829,138.59,138.5,6.4973]
[1765395125127,104.38621237,138.6,138.49,101.0772]
[1765395125332,101.0098,138.59,138.52,0.04913502]
[1765395125734,3.38211237,138.6,138.52,101.10683502]
[1765395125934,3.38211237,138.6,138.54,101.0417]
[1765395126131,3.38211237,138.6,138.56,0.05430905]
[1765395127342,3.38211237,138.6,138.57,101.0237]
[1765395127540,3.38211237,138.6,138.56,101.08520905]
[1765395127839,107.86869829,138.73,138.62,100.9865]
[1765395128045,100.9461,138.68,138.56,107.98979829]
[1765395128344,100.9461,138.68,138.57,101.0222]
[1765395128545,6.4901,138.66,138.58,6.4935]
[1765395128846,100.9296,138.7,138.57,101.0222]
[1765395128847,6.96129829,138.7,138.62,100.9818]
[1765395129036,0.05517354,138.67,138.65,0.05460398]
[1765395130249,107.3666,138.77,138.66,100.9581]
[1765395130447,100.9014,138.74,138.63,100.9754]
[1765395130641,107.4021,138.72,138.62,6.492]
[1765395130944,107.91959829,138.66,138.55,101.0381]
[1765395131252,100.9443,138.68,138.59,0.05061359]
[1765395131438,100.9676,138.65,138.62,0.05559192]
[1765395131837,100.9872,138.63,138.52,6.96129829]
[1765395132039,100.9959,138.61,138.5,101.0723]
[1765395132243,6.4933,138.6,138.51,6.4971]
[1765395132442,101.0132,138.59,138.48,101.0885]
[1765395132746,0.05398119,138.55,138.52,0.05130845]
[1765395133346,101.0548,138.53,138.42,6.96129829]
[1765395133649,101.0769,138.5,138.39,162.235]
[1765395133949,101.075,138.5,138.39,108.11629829]
[1765395134140,101.0899,138.48,138.37,61.08]
[1765395134342,101.0831,138.49,138.41,0.05304646]
[1765395134343,0.04798938,138.44,138.41,0.05304646]
[1765395135846,0.04798938,138.44,138.41,101.18954646]
[1765395136046,61.08,138.49,138.42,101.1327]
[1765395136342,61.08,138.49,138.4,62.0]
[1765395136550,6.96129829,138.48,138.37,162.2497]
[1765395136752,6.96129829,138.48,138.38,101.1616]
[1765395137055,0.05144981,138.44,138.35,101.1835]
[1765395137240,101.1271,138.43,138.32,202.4042]
[1765395137445,101.1271,138.43,138.3,21.72233166]
[1765395137446,101.1418,138.41,138.3,122.93903166]
[1765395137759,6.96129829,138.41,138.31,101.211]
[1765395137942,101.1521,138.4,138.29,61.08]
[1765395138150,0.0518744,138.36,138.33,0.04993659]
[1765395139949,6.96129829,138.45,138.35,107.6848]
[1765395140359,6.96129829,138.45,138.35,6.5045]
[1765395140751,6.96129829,138.45,138.36,107.6775]
[1765395140947,0.05485631,138.42,138.39,0.04603597]
[1765395141152,7.00895747,138.42,138.39,0.0517404]
[1765395141352,0.04765918,138.42,138.39,0.0517404]
[1765395141655,0.04765918,138.42,138.39,101.2032404]
[1765395141858,6.96129829,138.53,138.42,101.1264]
[1765395142154,6.96129829,138.53,138.45,101.1078]
[1765395142358,61.1,138.54,138.45,6.4997]
[1765395142559,108.01509829,138.53,138.4,101.144]
[1765395142760,0.02474254,138.48,138.45,0.05474025]
[1765395143460,0.02474254,138.48,138.46,101.1002]
[1765395143659,61.1,138.6,138.5,101.0733]
[1765395143856,61.1,138.6,138.5,107.5723]
[1765395144062,61.1,138.6,138.52,101.056]
[1765395144260,61.1,138.6,138.51,101.0632]
[1765395144555,100.9682,138.65,138.51,101.0632]
[1765395144556,119.6113378,138.68,138.57,101.0208]
[1765395144756,100.9587,138.66,138.61,0.05247074]
[1765395144951,107.4641,138.64,138.54,6.4953]
[1765395145153,162.0549,138.67,138.54,107.5402]